[Event "Titled Tuesday Blitz September 28 2021"]
[White "Avramidou, Anastasia"]
[Black "Moroni, Luca Jr"]
[WhiteFideId "4239873"]
[BlackFideId "865834"]
[WhiteElo "2183"]
[BlackElo "2491"]
[Result "0-1"]
[Round "10"]
[TimeControl "180+1"]
[Date "2021.09.28"]
[WhiteClock "0:00:12"]
[BlackClock "0:00:36"]

1. Nf3 {[%clk 0:02:55]}  g6 {[%clk 0:03:00]} 2. d4 {[%clk 0:02:55]}  Bg7 {[%clk 0:03:01]} 3. e4 {[%clk 0:02:55]}  d6 {[%clk 0:03:02]} 4. Nc3 {[%clk 0:02:55]}  Nf6 {[%clk 0:03:03]} 5. Be3 {[%clk 0:02:54]}  O-O {[%clk 0:03:03]} 6. Qd2 {[%clk 0:02:55]}  d5 {[%clk 0:03:03]} 7. e5 {[%clk 0:02:53]}  Ne4 {[%clk 0:03:03]} 8. Nxe4 {[%clk 0:02:53]}  dxe4 {[%clk 0:03:04]} 9. Ng5 {[%clk 0:02:53]}  c5 {[%clk 0:03:04]} 10. Nxe4 {[%clk 0:02:43]}  cxd4 {[%clk 0:03:04]} 11. Bxd4 {[%clk 0:02:39]}  Nc6 {[%clk 0:03:04]} 12. Bc3 {[%clk 0:02:34]}  Qxd2+ {[%clk 0:03:00]} 13. Nxd2 {[%clk 0:02:35]}  Nxe5 {[%clk 0:02:59]} 14. O-O-O {[%clk 0:02:34]}  Bf5 {[%clk 0:02:56]} 15. h3 {[%clk 0:02:26]}  Rac8 {[%clk 0:02:50]} 16. g4 {[%clk 0:02:23]}  Be6 {[%clk 0:02:50]} 17. Bg2 {[%clk 0:02:23]}  b5 {[%clk 0:02:49]} 18. Rhe1 {[%clk 0:02:14]}  Rxc3 {[%clk 0:02:25]} 19. bxc3 {[%clk 0:02:13]}  Bxa2 {[%clk 0:02:25]} 20. f4 {[%clk 0:02:07]}  Nc4 {[%clk 0:02:24]} 21. Nxc4 {[%clk 0:02:06]}  Bxc4 {[%clk 0:02:25]} 22. Rxe7 {[%clk 0:02:06]}  a5 {[%clk 0:02:25]} 23. Ra7 {[%clk 0:02:04]}  a4 {[%clk 0:02:24]} 24. Bd5 {[%clk 0:01:56]}  Bxd5 {[%clk 0:02:07]} 25. Rxd5 {[%clk 0:01:56]}  Bxc3 {[%clk 0:02:08]} 26. Rxb5 {[%clk 0:01:55]}  Re8 {[%clk 0:02:08]} 27. Rd5 {[%clk 0:01:26]}  Re4 {[%clk 0:02:07]} 28. Rd3 {[%clk 0:01:18]}  Re1+ {[%clk 0:01:55]} 29. Rd1 {[%clk 0:01:18]}  Re4 {[%clk 0:01:55]} 30. Rd3 {[%clk 0:01:18]}  Rc4 {[%clk 0:01:39]} 31. f5 {[%clk 0:01:08]}  gxf5 {[%clk 0:01:32]} 32. gxf5 {[%clk 0:01:09]}  Kg7 {[%clk 0:01:33]} 33. Kd1 {[%clk 0:00:44]}  Kf6 {[%clk 0:01:29]} 34. Ke2 {[%clk 0:00:40]}  Bb2 {[%clk 0:01:26]} 35. Rd6+ {[%clk 0:00:34]}  Kxf5 {[%clk 0:01:21]} 36. Rxf7+ {[%clk 0:00:22]}  Ke5 {[%clk 0:01:21]} 37. Ra6 {[%clk 0:00:22]}  Rxc2+ {[%clk 0:01:22]} 38. Kd3 {[%clk 0:00:22]}  Rc3+ {[%clk 0:01:22]} 39. Kd2 {[%clk 0:00:21]}  a3 {[%clk 0:01:22]} 40. Rxh7 {[%clk 0:00:21]}  Rg3 {[%clk 0:01:20]} 41. h4 {[%clk 0:00:19]}  Kd4 {[%clk 0:01:16]} 42. Rd7+ {[%clk 0:00:19]}  Kc4 {[%clk 0:01:16]} 43. Rc7+ {[%clk 0:00:18]}  Kb3 {[%clk 0:01:14]} 44. Rb7+ {[%clk 0:00:18]}  Ka2 {[%clk 0:01:14]} 45. h5 {[%clk 0:00:19]}  Rh3 {[%clk 0:01:14]} 46. h6 {[%clk 0:00:19]}  Kb1 {[%clk 0:01:11]} 47. h7 {[%clk 0:00:16]}  Rh2+ {[%clk 0:00:48]} 48. Ke3 {[%clk 0:00:16]}  a2 {[%clk 0:00:48]} 49. Kf4 {[%clk 0:00:14]}  a1=Q {[%clk 0:00:40]} 50. Rxa1+ {[%clk 0:00:14]}  Kxa1 {[%clk 0:00:41]} 51. Kg5 {[%clk 0:00:14]}  Bh8 {[%clk 0:00:36]} 52. Kg6 {[%clk 0:00:13]}  Rg2+ {[%clk 0:00:36]} 53. Kf7 {[%clk 0:00:12]}  Rg7+ {[%clk 0:00:36]} 0-1


[Site "https://www.chess.com"]

[Event "Titled Tuesday Blitz September 28 2021"]
[White "Azarov, Sergei"]
[Black "Hansen, Eric"]
[WhiteFideId "13501470"]
[BlackFideId "2606771"]
[WhiteElo "2494"]
[BlackElo "2568"]
[Result "1-0"]
[Round "10"]
[TimeControl "180+1"]
[Date "2021.09.28"]
[WhiteClock "0:00:09"]
[BlackClock "0:00:01"]

1. e4 {[%clk 0:03:00]}  c5 {[%clk 0:02:55]} 2. Nf3 {[%clk 0:03:01]}  e6 {[%clk 0:02:55]} 3. d4 {[%clk 0:03:01]}  cxd4 {[%clk 0:02:56]} 4. Nxd4 {[%clk 0:03:01]}  a6 {[%clk 0:02:57]} 5. Be2 {[%clk 0:03:01]}  Nf6 {[%clk 0:02:51]} 6. Nc3 {[%clk 0:03:01]}  Qc7 {[%clk 0:02:51]} 7. O-O {[%clk 0:03:01]}  Bb4 {[%clk 0:02:52]} 8. Bg5 {[%clk 0:03:01]}  Nc6 {[%clk 0:02:53]} 9. Nxc6 {[%clk 0:02:52]}  bxc6 {[%clk 0:02:52]} 10. Bxf6 {[%clk 0:02:43]}  gxf6 {[%clk 0:02:52]} 11. Na4 {[%clk 0:02:41]}  Bd6 {[%clk 0:02:34]} 12. h3 {[%clk 0:02:36]}  c5 {[%clk 0:02:31]} 13. Bc4 {[%clk 0:02:10]}  Rb8 {[%clk 0:02:29]} 14. Qe2 {[%clk 0:02:04]}  Qc6 {[%clk 0:02:11]} 15. b3 {[%clk 0:01:58]}  Bb7 {[%clk 0:02:09]} 16. Rad1 {[%clk 0:01:57]}  h5 {[%clk 0:02:07]} 17. Rd3 {[%clk 0:01:50]}  Be7 {[%clk 0:02:00]} 18. Bd5 {[%clk 0:01:31]}  Qc7 {[%clk 0:01:31]} 19. Bxb7 {[%clk 0:01:30]}  Rxb7 {[%clk 0:01:31]} 20. c4 {[%clk 0:01:30]}  Qc6 {[%clk 0:01:24]} 21. Nc3 {[%clk 0:01:27]}  h4 {[%clk 0:01:22]} 22. Qg4 {[%clk 0:01:23]}  Kf8 {[%clk 0:01:19]} 23. Rfd1 {[%clk 0:01:21]}  d6 {[%clk 0:01:00]} 24. f4 {[%clk 0:01:13]}  Rg8 {[%clk 0:00:34]} 25. Qe2 {[%clk 0:00:52]}  Rb8 {[%clk 0:00:26]} 26. Kh1 {[%clk 0:00:51]}  Ke8 {[%clk 0:00:24]} 27. f5 {[%clk 0:00:50]}  Kd7 {[%clk 0:00:25]} 28. Re3 {[%clk 0:00:42]}  Rg5 {[%clk 0:00:19]} 29. Nd5 {[%clk 0:00:39]}  Rbg8 {[%clk 0:00:19]} 30. Nf4 {[%clk 0:00:34]}  Bd8 {[%clk 0:00:15]} 31. Qf2 {[%clk 0:00:26]}  Rg3 {[%clk 0:00:13]} 32. Rxg3 {[%clk 0:00:21]}  Rxg3 {[%clk 0:00:14]} 33. Nh5 {[%clk 0:00:20]}  Rg5 {[%clk 0:00:05]} 34. fxe6+ {[%clk 0:00:20]}  fxe6 {[%clk 0:00:05]} 35. Nxf6+ {[%clk 0:00:21]}  Kc8 {[%clk 0:00:03]} 36. Qf4 {[%clk 0:00:16]}  Re5 {[%clk 0:00:02]} 37. Ng4 {[%clk 0:00:11]}  Qxe4 {[%clk 0:00:02]} 38. Qxe4 {[%clk 0:00:09]}  Rxe4 {[%clk 0:00:03]} 39. Kg1 {[%clk 0:00:09]}  Be7 {[%clk 0:00:02]} 40. Kf2 {[%clk 0:00:09]}  d5 {[%clk 0:00:01]} 41. Kf3 {[%clk 0:00:09]} 1-0


[Site "https://www.chess.com"]

[Event "Titled Tuesday Blitz September 28 2021"]
[White "Begmuratov, Khumoyun"]
[Black "Svane, Rasmus"]
[WhiteFideId "14210207"]
[BlackFideId "4657101"]
[WhiteElo "1948"]
[BlackElo "2643"]
[Result "0-1"]
[Round "10"]
[TimeControl "180+1"]
[Date "2021.09.28"]
[WhiteClock "0:00:13"]
[BlackClock "0:00:24"]

1. e4 {[%clk 0:03:00]}  c6 {[%clk 0:02:57]} 2. Nc3 {[%clk 0:02:59]}  d5 {[%clk 0:02:58]} 3. Nf3 {[%clk 0:02:59]}  dxe4 {[%clk 0:02:59]} 4. Nxe4 {[%clk 0:02:59]}  Nf6 {[%clk 0:03:00]} 5. Qe2 {[%clk 0:02:58]}  Nxe4 {[%clk 0:03:00]} 6. Qxe4 {[%clk 0:02:59]}  Qa5 {[%clk 0:03:01]} 7. Bc4 {[%clk 0:02:58]}  Bf5 {[%clk 0:03:00]} 8. Qf4 {[%clk 0:02:57]}  e6 {[%clk 0:03:00]} 9. O-O {[%clk 0:02:51]}  Be7 {[%clk 0:03:00]} 10. c3 {[%clk 0:02:49]}  O-O {[%clk 0:03:00]} 11. d4 {[%clk 0:02:49]}  Nd7 {[%clk 0:02:59]} 12. Re1 {[%clk 0:02:44]}  Rac8 {[%clk 0:02:58]} 13. Ne5 {[%clk 0:02:41]}  Qc7 {[%clk 0:02:56]} 14. Qg3 {[%clk 0:02:31]}  Nxe5 {[%clk 0:02:55]} 15. dxe5 {[%clk 0:02:30]}  Rfd8 {[%clk 0:02:49]} 16. Be3 {[%clk 0:02:22]}  b5 {[%clk 0:02:48]} 17. Be2 {[%clk 0:02:22]}  Rd5 {[%clk 0:02:44]} 18. Bf4 {[%clk 0:02:05]}  Rcd8 {[%clk 0:02:39]} 19. h4 {[%clk 0:02:00]}  Kf8 {[%clk 0:02:32]} 20. h5 {[%clk 0:01:58]}  h6 {[%clk 0:02:31]} 21. a4 {[%clk 0:01:48]}  b4 {[%clk 0:02:23]} 22. c4 {[%clk 0:01:34]}  R5d7 {[%clk 0:02:11]} 23. Be3 {[%clk 0:01:25]}  Qa5 {[%clk 0:02:10]} 24. Bf3 {[%clk 0:01:24]}  Bc5 {[%clk 0:01:57]} 25. Bf4 {[%clk 0:01:18]}  Qc7 {[%clk 0:01:46]} 26. Qh2 {[%clk 0:01:15]}  Rd3 {[%clk 0:01:39]} 27. Be2 {[%clk 0:01:11]}  Rb3 {[%clk 0:01:34]} 28. g4 {[%clk 0:01:07]}  Bh7 {[%clk 0:01:26]} 29. g5 {[%clk 0:01:05]}  hxg5 {[%clk 0:01:20]} 30. Bxg5 {[%clk 0:01:05]}  Rxb2 {[%clk 0:01:20]} 31. h6 {[%clk 0:01:00]}  Rd4 {[%clk 0:01:02]} 32. Qg3 {[%clk 0:00:54]}  Re4 {[%clk 0:00:51]} 33. Kf1 {[%clk 0:00:39]}  Qxe5 {[%clk 0:00:51]} 34. Rad1 {[%clk 0:00:34]}  f6 {[%clk 0:00:39]} 35. hxg7+ {[%clk 0:00:25]}  Ke7 {[%clk 0:00:33]} 36. Qh4 {[%clk 0:00:15]}  Rxh4 {[%clk 0:00:26]} 37. Bxh4 {[%clk 0:00:13]}  Qh2 {[%clk 0:00:24]} 0-1


[Site "https://www.chess.com"]

[Event "Titled Tuesday Blitz September 28 2021"]
[White "Bologan, Victor"]
[Black "Przybylski, Wojciech"]
[WhiteFideId "13900048"]
[BlackFideId "1117599"]
[WhiteElo "2511"]
[BlackElo "2285"]
[Result "1-0"]
[Round "10"]
[TimeControl "180+1"]
[Date "2021.09.28"]
[WhiteClock "0:00:42"]
[BlackClock "0:00:01"]

1. e4 {[%clk 0:02:59]}  e5 {[%clk 0:02:54]} 2. Nf3 {[%clk 0:02:58]}  Nc6 {[%clk 0:02:54]} 3. Bc4 {[%clk 0:02:58]}  Nf6 {[%clk 0:02:53]} 4. d3 {[%clk 0:02:58]}  Be7 {[%clk 0:02:53]} 5. O-O {[%clk 0:02:57]}  O-O {[%clk 0:02:53]} 6. Re1 {[%clk 0:02:58]}  d6 {[%clk 0:02:53]} 7. a4 {[%clk 0:02:58]}  Na5 {[%clk 0:02:52]} 8. Ba2 {[%clk 0:02:56]}  c5 {[%clk 0:02:53]} 9. Nc3 {[%clk 0:02:55]}  Be6 {[%clk 0:02:51]} 10. Nd5 {[%clk 0:02:55]}  Nc6 {[%clk 0:02:50]} 11. c3 {[%clk 0:02:54]}  Bg4 {[%clk 0:02:38]} 12. Ne3 {[%clk 0:02:51]}  Be6 {[%clk 0:02:36]} 13. Bb1 {[%clk 0:02:47]}  Re8 {[%clk 0:02:34]} 14. Ng5 {[%clk 0:02:45]}  Bd7 {[%clk 0:02:31]} 15. Ba2 {[%clk 0:02:39]}  Rf8 {[%clk 0:02:27]} 16. h3 {[%clk 0:02:19]}  h6 {[%clk 0:01:53]} 17. Nf3 {[%clk 0:02:17]}  Nh5 {[%clk 0:01:52]} 18. Nd5 {[%clk 0:02:11]}  Nf6 {[%clk 0:01:48]} 19. Ne3 {[%clk 0:02:09]}  Nh5 {[%clk 0:01:47]} 20. Nf5 {[%clk 0:02:07]}  Nf4 {[%clk 0:01:37]} 21. Bxf4 {[%clk 0:02:04]}  exf4 {[%clk 0:01:38]} 22. Nxe7+ {[%clk 0:01:57]}  Qxe7 {[%clk 0:01:37]} 23. d4 {[%clk 0:01:57]}  cxd4 {[%clk 0:01:25]} 24. cxd4 {[%clk 0:01:57]}  Nb4 {[%clk 0:00:59]} 25. Bc4 {[%clk 0:01:49]}  Be6 {[%clk 0:00:58]} 26. d5 {[%clk 0:01:48]}  Bd7 {[%clk 0:00:56]} 27. a5 {[%clk 0:01:46]}  Rfc8 {[%clk 0:00:48]} 28. Rc1 {[%clk 0:01:36]}  Qd8 {[%clk 0:00:25]} 29. e5 {[%clk 0:01:32]}  Qxa5 {[%clk 0:00:21]} 30. Qd2 {[%clk 0:01:19]}  b5 {[%clk 0:00:08]} 31. Bb3 {[%clk 0:01:15]}  Rxc1 {[%clk 0:00:07]} 32. Rxc1 {[%clk 0:01:15]}  Rc8 {[%clk 0:00:06]} 33. e6 {[%clk 0:01:07]}  Rxc1+ {[%clk 0:00:05]} 34. Qxc1 {[%clk 0:01:06]}  Be8 {[%clk 0:00:04]} 35. Qxf4 {[%clk 0:00:59]}  Qa1+ {[%clk 0:00:01]} 36. Kh2 {[%clk 0:00:58]}  Nd3 {[%clk 0:00:01]} 37. Qd4 {[%clk 0:00:42]} 1-0


[Site "https://www.chess.com"]

[Event "Titled Tuesday Blitz September 28 2021"]
[White "Bonte, Andrei-Mihai"]
[Black "Vivas Zamora, Fabian Ernesto"]
[WhiteFideId "1210297"]
[BlackFideId "3902480"]
[WhiteElo "2171"]
[BlackElo "1966"]
[Result "0-1"]
[Round "10"]
[TimeControl "180+1"]
[Date "2021.09.28"]
[WhiteClock "0:00:04"]
[BlackClock "0:01:09"]

1. d4 {[%clk 0:03:00]}  Nf6 {[%clk 0:02:58]} 2. c4 {[%clk 0:02:59]}  g6 {[%clk 0:02:57]} 3. Nc3 {[%clk 0:02:59]}  d5 {[%clk 0:02:54]} 4. cxd5 {[%clk 0:02:59]}  Nxd5 {[%clk 0:02:52]} 5. e4 {[%clk 0:03:00]}  Nxc3 {[%clk 0:02:53]} 6. bxc3 {[%clk 0:03:00]}  Bg7 {[%clk 0:02:54]} 7. Nf3 {[%clk 0:03:01]}  c5 {[%clk 0:02:52]} 8. Be2 {[%clk 0:03:01]}  Nc6 {[%clk 0:02:48]} 9. d5 {[%clk 0:03:01]}  Bxc3+ {[%clk 0:02:49]} 10. Bd2 {[%clk 0:03:00]}  Bxa1 {[%clk 0:02:49]} 11. Qxa1 {[%clk 0:03:01]}  Nd4 {[%clk 0:02:49]} 12. Nxd4 {[%clk 0:03:00]}  cxd4 {[%clk 0:02:50]} 13. Qxd4 {[%clk 0:03:00]}  O-O {[%clk 0:02:50]} 14. Bh6 {[%clk 0:02:37]}  f6 {[%clk 0:02:49]} 15. Bxf8 {[%clk 0:02:36]}  Kxf8 {[%clk 0:02:50]} 16. O-O {[%clk 0:02:35]}  Bd7 {[%clk 0:02:32]} 17. Rb1 {[%clk 0:02:25]}  Qc7 {[%clk 0:02:10]} 18. f3 {[%clk 0:02:18]}  b6 {[%clk 0:02:02]} 19. Ba6 {[%clk 0:02:12]}  Rd8 {[%clk 0:01:38]} 20. Qd2 {[%clk 0:01:52]}  b5 {[%clk 0:01:32]} 21. Bxb5 {[%clk 0:01:44]}  Rb8 {[%clk 0:01:25]} 22. d6 {[%clk 0:00:05]}  Qc5+ {[%clk 0:01:12]} 23. Kh1 {[%clk 0:00:04]}  Rxb5 {[%clk 0:01:09]} 0-1


[Site "https://www.chess.com"]

[Event "Titled Tuesday Blitz September 28 2021"]
[White "Demin, Vladimir"]
[Black "Rustemov, Alexander"]
[WhiteFideId "4167457"]
[BlackFideId "4119002"]
[WhiteElo "2535"]
[BlackElo "2744"]
[Result "0-1"]
[Round "10"]
[TimeControl "180+1"]
[Date "2021.09.28"]
[WhiteClock "0:01:35"]
[BlackClock "0:01:10"]

1. e4 {[%clk 0:03:00]}  e6 {[%clk 0:02:59]} 2. d4 {[%clk 0:03:00]}  d5 {[%clk 0:02:59]} 3. Bd3 {[%clk 0:03:01]}  dxe4 {[%clk 0:02:58]} 4. Bxe4 {[%clk 0:03:02]}  Nf6 {[%clk 0:02:58]} 5. Bf3 {[%clk 0:03:02]}  Be7 {[%clk 0:02:56]} 6. Ne2 {[%clk 0:03:00]}  O-O {[%clk 0:02:56]} 7. O-O {[%clk 0:03:01]}  Nbd7 {[%clk 0:02:51]} 8. Bf4 {[%clk 0:03:01]}  Bd6 {[%clk 0:02:48]} 9. Bxd6 {[%clk 0:02:39]}  cxd6 {[%clk 0:02:23]} 10. c4 {[%clk 0:02:39]}  Rb8 {[%clk 0:02:16]} 11. Nbc3 {[%clk 0:02:39]}  a6 {[%clk 0:02:12]} 12. a4 {[%clk 0:02:35]}  b6 {[%clk 0:02:11]} 13. Ng3 {[%clk 0:02:28]}  Qc7 {[%clk 0:02:09]} 14. Qd3 {[%clk 0:02:27]}  Bb7 {[%clk 0:02:06]} 15. Bxb7 {[%clk 0:02:26]}  Qxb7 {[%clk 0:02:04]} 16. Nge4 {[%clk 0:02:26]}  d5 {[%clk 0:01:49]} 17. cxd5 {[%clk 0:02:15]}  Nxd5 {[%clk 0:01:45]} 18. Ng5 {[%clk 0:02:13]}  N7f6 {[%clk 0:01:43]} 19. Rfe1 {[%clk 0:02:07]}  Rfd8 {[%clk 0:01:41]} 20. Re5 {[%clk 0:02:00]}  h6 {[%clk 0:01:35]} 21. Nge4 {[%clk 0:01:56]}  b5 {[%clk 0:01:19]} 22. Nc5 {[%clk 0:01:51]}  Qc6 {[%clk 0:01:11]} 23. axb5 {[%clk 0:01:46]}  axb5 {[%clk 0:01:12]} 24. Ra6 {[%clk 0:01:41]}  Qe8 {[%clk 0:01:10]} 25. h3 {[%clk 0:01:35]}  Nb4 {[%clk 0:01:10]} 0-1


[Site "https://www.chess.com"]

[Event "Titled Tuesday Blitz September 28 2021"]
[White "Di Nicolantonio, Lucas"]
[Black "Yoo, Christopher Woojin"]
[WhiteFideId "680460"]
[BlackFideId "30909694"]
[WhiteElo "2381"]
[BlackElo "2105"]
[Result "0-1"]
[Round "10"]
[TimeControl "180+1"]
[Date "2021.09.28"]
[WhiteClock "0:00:12"]
[BlackClock "0:00:54"]

1. Nf3 {[%clk 0:02:53]}  b6 {[%clk 0:02:59]} 2. e4 {[%clk 0:02:51]}  Bb7 {[%clk 0:02:59]} 3. Nc3 {[%clk 0:02:52]}  e6 {[%clk 0:03:00]} 4. d4 {[%clk 0:02:52]}  Bb4 {[%clk 0:03:00]} 5. Bd3 {[%clk 0:02:52]}  Nf6 {[%clk 0:03:00]} 6. Qe2 {[%clk 0:02:51]}  d5 {[%clk 0:03:00]} 7. e5 {[%clk 0:02:48]}  Ne4 {[%clk 0:03:00]} 8. Bd2 {[%clk 0:02:35]}  Nxd2 {[%clk 0:02:59]} 9. Qxd2 {[%clk 0:02:06]}  c5 {[%clk 0:02:58]} 10. a3 {[%clk 0:02:07]}  Bxc3 {[%clk 0:02:57]} 11. bxc3 {[%clk 0:02:05]}  Nc6 {[%clk 0:02:56]} 12. O-O {[%clk 0:01:59]}  O-O {[%clk 0:02:33]} 13. a4 {[%clk 0:01:52]}  f6 {[%clk 0:02:29]} 14. Bb5 {[%clk 0:01:44]}  Rc8 {[%clk 0:01:48]} 15. Rfe1 {[%clk 0:01:43]}  a6 {[%clk 0:01:28]} 16. Bxc6 {[%clk 0:01:36]}  Rxc6 {[%clk 0:01:29]} 17. exf6 {[%clk 0:01:34]}  gxf6 {[%clk 0:01:29]} 18. Re3 {[%clk 0:01:09]}  Qd7 {[%clk 0:01:27]} 19. Rae1 {[%clk 0:01:07]}  Kh8 {[%clk 0:01:25]} 20. Qe2 {[%clk 0:01:04]}  Bc8 {[%clk 0:01:23]} 21. Nh4 {[%clk 0:00:59]}  Rg8 {[%clk 0:01:21]} 22. Qf3 {[%clk 0:00:50]}  Qg7 {[%clk 0:01:12]} 23. dxc5 {[%clk 0:00:24]}  Rxc5 {[%clk 0:01:11]} 24. h3 {[%clk 0:00:12]}  Qh6 {[%clk 0:00:54]} 0-1


[Site "https://www.chess.com"]

[Event "Titled Tuesday Blitz September 28 2021"]
[White "Gabrielian, Artur"]
[Black "Pires, Marcos Vinicius Torsani"]
[WhiteFideId "4131002"]
[BlackFideId "2118939"]
[WhiteElo "2489"]
[BlackElo "2273"]
[Result "1-0"]
[Round "10"]
[TimeControl "180+1"]
[Date "2021.09.28"]
[WhiteClock "0:01:19"]
[BlackClock "0:00:45"]

1. d4 {[%clk 0:03:00]}  Nf6 {[%clk 0:02:58]} 2. c4 {[%clk 0:03:00]}  g6 {[%clk 0:02:57]} 3. Nc3 {[%clk 0:03:00]}  Bg7 {[%clk 0:02:55]} 4. e4 {[%clk 0:03:00]}  d6 {[%clk 0:02:55]} 5. f3 {[%clk 0:03:00]}  O-O {[%clk 0:02:54]} 6. Be3 {[%clk 0:03:00]}  c5 {[%clk 0:02:52]} 7. Nge2 {[%clk 0:02:59]}  cxd4 {[%clk 0:02:46]} 8. Nxd4 {[%clk 0:02:59]}  Nc6 {[%clk 0:02:46]} 9. Be2 {[%clk 0:02:59]}  Bd7 {[%clk 0:02:45]} 10. O-O {[%clk 0:02:59]}  Nxd4 {[%clk 0:02:46]} 11. Bxd4 {[%clk 0:02:59]}  a5 {[%clk 0:02:47]} 12. Qd2 {[%clk 0:02:54]}  Bc6 {[%clk 0:02:46]} 13. b3 {[%clk 0:02:52]}  Nd7 {[%clk 0:02:46]} 14. Bf2 {[%clk 0:02:51]}  Nc5 {[%clk 0:02:40]} 15. Rab1 {[%clk 0:02:50]}  e6 {[%clk 0:02:32]} 16. Rfd1 {[%clk 0:02:49]}  Be5 {[%clk 0:02:26]} 17. Nb5 {[%clk 0:02:35]}  Bxb5 {[%clk 0:02:25]} 18. cxb5 {[%clk 0:02:36]}  Qf6 {[%clk 0:02:18]} 19. g3 {[%clk 0:02:23]}  Rfd8 {[%clk 0:02:09]} 20. Kg2 {[%clk 0:02:22]}  b6 {[%clk 0:01:56]} 21. Bc4 {[%clk 0:02:15]}  Qg7 {[%clk 0:01:55]} 22. Qe2 {[%clk 0:02:12]}  Rac8 {[%clk 0:01:48]} 23. Rbc1 {[%clk 0:02:06]}  Bb2 {[%clk 0:01:48]} 24. Rc2 {[%clk 0:02:06]}  Be5 {[%clk 0:01:46]} 25. Rcd2 {[%clk 0:02:06]}  g5 {[%clk 0:01:42]} 26. Be3 {[%clk 0:01:53]}  h6 {[%clk 0:01:40]} 27. Kh1 {[%clk 0:01:50]}  Bc3 {[%clk 0:01:41]} 28. Rxd6 {[%clk 0:01:49]}  Rxd6 {[%clk 0:01:28]} 29. Rxd6 {[%clk 0:01:50]}  Qe5 {[%clk 0:01:25]} 30. Rxb6 {[%clk 0:01:50]}  Bd4 {[%clk 0:01:25]} 31. Rc6 {[%clk 0:01:41]}  Rb8 {[%clk 0:01:02]} 32. Qd2 {[%clk 0:01:30]}  Bxe3 {[%clk 0:01:01]} 33. Qxe3 {[%clk 0:01:30]}  Qa1+ {[%clk 0:01:00]} 34. Kg2 {[%clk 0:01:30]}  Qxa2+ {[%clk 0:01:00]} 35. Qf2 {[%clk 0:01:23]}  Qxf2+ {[%clk 0:00:56]} 36. Kxf2 {[%clk 0:01:24]}  Nd7 {[%clk 0:00:55]} 37. Ra6 {[%clk 0:01:22]}  Ne5 {[%clk 0:00:50]} 38. Rxa5 {[%clk 0:01:21]}  Rd8 {[%clk 0:00:51]} 39. Ke2 {[%clk 0:01:20]}  g4 {[%clk 0:00:51]} 40. fxg4 {[%clk 0:01:19]}  Nxg4 {[%clk 0:00:50]} 41. b6 {[%clk 0:01:19]}  Ne5 {[%clk 0:00:45]} 42. Rxe5 {[%clk 0:01:19]} 1-0


[Site "https://www.chess.com"]

[Event "Titled Tuesday Blitz September 28 2021"]
[White "Garcia Garcia, Alejandro"]
[Black "Havanecz, Bianka"]
[WhiteFideId "3516334"]
[BlackFideId "704814"]
[WhiteElo "2131"]
[BlackElo "2408"]
[Result "0-1"]
[Round "10"]
[TimeControl "180+1"]
[Date "2021.09.28"]
[WhiteClock "0:00:51"]
[BlackClock "0:00:09"]

1. Nf3 {[%clk 0:03:00]}  d5 {[%clk 0:03:00]} 2. g3 {[%clk 0:03:01]}  Bg4 {[%clk 0:02:56]} 3. Bg2 {[%clk 0:03:01]}  e6 {[%clk 0:02:53]} 4. h3 {[%clk 0:03:01]}  Bxf3 {[%clk 0:02:52]} 5. exf3 {[%clk 0:03:01]}  Nf6 {[%clk 0:02:53]} 6. O-O {[%clk 0:03:02]}  Be7 {[%clk 0:02:51]} 7. f4 {[%clk 0:03:02]}  O-O {[%clk 0:02:49]} 8. b3 {[%clk 0:03:02]}  c6 {[%clk 0:02:49]} 9. Bb2 {[%clk 0:03:02]}  Nbd7 {[%clk 0:02:49]} 10. d3 {[%clk 0:03:01]}  Re8 {[%clk 0:02:47]} 11. c4 {[%clk 0:03:01]}  Nf8 {[%clk 0:02:35]} 12. Nd2 {[%clk 0:02:59]}  Rc8 {[%clk 0:02:24]} 13. Nf3 {[%clk 0:02:58]}  Ng6 {[%clk 0:02:17]} 14. Ne5 {[%clk 0:02:56]}  Nd7 {[%clk 0:02:08]} 15. Re1 {[%clk 0:02:49]}  Bf6 {[%clk 0:02:08]} 16. Qe2 {[%clk 0:02:44]}  Rc7 {[%clk 0:01:37]} 17. Rad1 {[%clk 0:02:42]}  Ndf8 {[%clk 0:01:28]} 18. Nxg6 {[%clk 0:02:34]}  hxg6 {[%clk 0:01:26]} 19. Bxf6 {[%clk 0:02:31]}  gxf6 {[%clk 0:01:24]} 20. Qe3 {[%clk 0:02:15]}  b6 {[%clk 0:01:15]} 21. h4 {[%clk 0:02:12]}  f5 {[%clk 0:01:14]} 22. h5 {[%clk 0:02:10]}  Kg7 {[%clk 0:01:11]} 23. Qe5+ {[%clk 0:01:57]}  Kh7 {[%clk 0:01:10]} 24. hxg6+ {[%clk 0:01:54]}  Nxg6 {[%clk 0:01:07]} 25. Qe2 {[%clk 0:01:53]}  Kg7 {[%clk 0:01:05]} 26. Qb2+ {[%clk 0:01:53]}  Qf6 {[%clk 0:01:03]} 27. Qxf6+ {[%clk 0:01:49]}  Kxf6 {[%clk 0:01:04]} 28. cxd5 {[%clk 0:01:49]}  cxd5 {[%clk 0:01:04]} 29. Bxd5 {[%clk 0:01:47]}  Rc2 {[%clk 0:01:02]} 30. a4 {[%clk 0:01:46]}  Rd8 {[%clk 0:00:56]} 31. Bc4 {[%clk 0:01:46]}  Ne7 {[%clk 0:00:53]} 32. d4 {[%clk 0:01:43]}  Rb2 {[%clk 0:00:41]} 33. Re2 {[%clk 0:01:36]}  Rxe2 {[%clk 0:00:39]} 34. Bxe2 {[%clk 0:01:37]}  Nc6 {[%clk 0:00:40]} 35. d5 {[%clk 0:01:29]}  Rxd5 {[%clk 0:00:32]} 36. Bf3 {[%clk 0:01:24]}  Rxd1+ {[%clk 0:00:28]} 37. Bxd1 {[%clk 0:01:25]}  Ke7 {[%clk 0:00:25]} 38. Kf1 {[%clk 0:01:25]}  Kd6 {[%clk 0:00:25]} 39. Ke2 {[%clk 0:01:25]}  Kc5 {[%clk 0:00:22]} 40. Kd3 {[%clk 0:01:20]}  Kb4 {[%clk 0:00:20]} 41. f3 {[%clk 0:01:17]}  Na5 {[%clk 0:00:20]} 42. Kd4 {[%clk 0:01:17]}  f6 {[%clk 0:00:18]} 43. g4 {[%clk 0:01:17]}  fxg4 {[%clk 0:00:19]} 44. fxg4 {[%clk 0:01:18]}  Nc6+ {[%clk 0:00:17]} 45. Ke4 {[%clk 0:01:17]}  a5 {[%clk 0:00:15]} 46. g5 {[%clk 0:01:16]}  fxg5 {[%clk 0:00:15]} 47. fxg5 {[%clk 0:01:17]}  Kc3 {[%clk 0:00:14]} 48. g6 {[%clk 0:01:17]}  Ne7 {[%clk 0:00:14]} 49. g7 {[%clk 0:01:16]}  Kd2 {[%clk 0:00:09]} 50. Bg4 {[%clk 0:01:16]}  Kc3 {[%clk 0:00:09]} 51. Bxe6 {[%clk 0:01:16]}  Kb4 {[%clk 0:00:08]} 52. g8=Q {[%clk 0:01:16]}  Nxg8 {[%clk 0:00:08]} 53. Bxg8 {[%clk 0:01:17]}  b5 {[%clk 0:00:09]} 54. axb5 {[%clk 0:00:56]}  Kxb5 {[%clk 0:00:10]} 55. Be6 {[%clk 0:00:53]}  Kb4 {[%clk 0:00:08]} 56. Bd7 {[%clk 0:00:50]}  Kxb3 {[%clk 0:00:09]} 57. Ba4+ {[%clk 0:00:51]}  Kxa4 {[%clk 0:00:09]} 58. Kd3 {[%clk 0:00:52]}  Kb3 {[%clk 0:00:09]} 59. Kd2 {[%clk 0:00:51]}  Kb2 {[%clk 0:00:09]} 0-1


[Site "https://www.chess.com"]